[Event "Western Asian Juniors Chess-ch 2023"]
[Site "Colombo"]
[Date "2023.12.01"]
[Round "4.2"]
[White "Liyanage, Ranindu Dilshan"]
[Black "Thilakarathne, G M H"]
[Result "1/2-1/2"]
[ECO "E24"]
[WhiteElo "2400"]
[BlackElo "2389"]
[Annotator "TA"]
[PlyCount "41"]
[EventDate "2023.11.30"]
[EventCountry "SRI"]
[SourceTitle "playchess.com"]
[Source "ChessBase"]
[SourceQuality "1"]
[TimeControl "5400+30"]

{[%evp 9,41,1,0,0,0,0,0,0,37,30,18,25,43,46,72,73,77,55,76,28,50,50,61,49,52,52,56,56,50,50,60,60,59,41]} 1. d4 {[%emt 0:01:25]} Nf6 {[%emt 0:06:48]} 2. c4 {[%emt 0:00:22]} e6 {[%emt 0:00:07]} 3. Nc3 {[%emt 0:00:24]} Bb4 {[%emt 0:00:19]} 4. a3 {[%emt 0:00:16]} Bxc3+ {[%emt 0:00:10]} 5. bxc3 {[%emt 0:00:06]} Nc6 {[%emt 0:05:39]} 6. f3 {[%emt 0:01:23] E24: Nimzo-Indian: Sämisch: Unusual Black 5th moves and 5...c5 sidelines.} d5 {[%emt 0:09:26]} 7. e3 {[%emt 0:09:15]} O-O {[%emt 0:07:28]} 8. cxd5 {[%emt 0:01:33] The position is equal.} Nxd5 {[%emt 0:03:49]} 9. c4 {[%emt 0:05:50]} Nb6 {[%emt 0:00:58] [#]} (9... Nc3 $2 10. Qc2 $18) 10. Qc2 $146 {[%emt 0:14:00]} ({Predecessor:} 10. Bd3 e5 11. d5 Na5 12. Qc2 Naxc4 13. Bxh7+ Kh8 14. Bd3 Qxd5 15. Ne2 Rd8 16. Be4 {0-1 Kolver,C (1991)-Makoto,R (2406) Johannesburg PSS op 2016 (6)}) 10... f5 {[%emt 0:07:33][%cal Of5f4]} 11. f4 {[%emt 0:02:48]} Bd7 {[%emt 0:05:39]} 12. Nf3 {[%emt 0:04:52]} Ne7 {[%emt 0:12:57][%cal Oc7c5]} 13. a4 {[%emt 0:08:38]} a5 {[%emt 0:00:16]} 14. Ne5 {[%emt 0:06:30]} (14. c5 $16 Nbd5 15. Bc4) 14... Be8 {[%emt 0:05:19]} 15. Be2 {[%emt 0:02:02] White is slightly better.} Nc6 {[%emt 0:06:44]} 16. Bf3 {[%emt 0:04:44]} Nxe5 {[%emt 0:04:08]} 17. dxe5 {[%emt 0:05:08]} Bc6 {[%emt 0:04:05]} 18. Bxc6 {[%emt 0:01:06]} bxc6 {[%emt 0:00:01]} 19. Ba3 {[%emt 0:00:40]} Rf7 {[%emt 0:00:11]} 20. O-O $1 {[%emt 0:00:37]} Rd7 {[%emt 0:01:42]} 21. Rfd1 {[%emt 0:03:51] Repels Rd2.   Weighted Error Value: White=0.05 (flawless) /Black=0.05 (flawless)} 1/2-1/2

[Event "Western Asian Juniors Chess-ch 2023"]
[Site "Colombo"]
[Date "2023.12.01"]
[Round "4.3"]
[White "Raahul V S"]
[Black "De Silva, L M S T"]
[Result "1/2-1/2"]
[ECO "E48"]
[WhiteElo "2350"]
[BlackElo "2394"]
[Annotator "RC"]
[PlyCount "61"]
[EventDate "2023.11.30"]
[EventCountry "SRI"]
[SourceTitle "playchess.com"]
[Source "ChessBase"]
[SourceQuality "1"]
[TimeControl "5400+30"]

1. d4 {[%emt 0:00:46]} Nf6 {[%emt 0:01:22]} 2. c4 {[%emt 0:00:19]} e6 {[%emt 0:00:10]} 3. Nc3 {[%emt 0:00:05]} Bb4 {[%emt 0:00:11]} 4. e3 {[%emt 0:00:45]} O-O {[%emt 0:00:41]} 5. Bd3 {[%emt 0:00:29]} d5 {[%emt 0:00:43]} 6. cxd5 {[%emt 0:00:29]} exd5 {[%emt 0:00:33]} 7. a3 {[%emt 0:00:05]} Bd6 {[%emt 0:05:26]} 8. Qc2 {[%emt 0:00:08]} a6 {[%emt 0:04:54]} 9. Nge2 {[%emt 0:00:28]} Nbd7 {[%emt 0:01:39]} 10. b4 {[%emt 0:03:13]} b6 {[%emt 0:05:42]} 11. O-O {[%emt 0:01:30]} c5 {[%emt 0:03:03]} 12. bxc5 {[%emt 0:00:30]} bxc5 {[%emt 0:00:05]} 13. Ng3 {[%emt 0:01:23]} Qc7 {[%emt 0:06:10]} 14. Bd2 {[%emt 0:08:08]} Bb7 {[%emt 0:02:12]} 15. Be2 {[%emt 0:07:09]} cxd4 {[%emt 0:03:02]} 16. exd4 {[%emt 0:00:05]} Ne4 {[%emt 0:01:12]} 17. Be1 {[%emt 0:02:18]} Rfc8 {[%emt 0:05:07]} 18. Qb3 {[%emt 0:00:51]} Nxc3 {[%emt 0:10:24]} 19. Bxc3 {[%emt 0:00:05]} Qxc3 {[%emt 0:01:32]} 20. Qxb7 {[%emt 0:00:04]} Nf6 {[%emt 0:01:55]} 21. Nf5 {[%emt 0:02:26]} Rcb8 {[%emt 0:05:20]} 22. Rac1 {[%emt 0:03:59]} Qd2 {[%emt 0:07:26]} 23. Qc6 {[%emt 0:00:05]} Bxa3 {[%emt 0:04:31]} 24. Rc2 {[%emt 0:03:37]} Qf4 {[%emt 0:02:29]} 25. Bd3 {[%emt 0:03:56]} Bf8 {[%emt 0:08:37]} 26. g3 {[%emt 0:15:33]} Qf3 {[%emt 0:01:00]} 27. Rc3 {[%emt 0:00:07]} Kh8 {[%emt 0:04:56]} 28. h3 {[%emt 0:06:54]} Rd8 {[%emt 0:02:06]} 29. Nh4 {[%emt 0:10:19]} Kg8 {[%emt 0:12:32]} 30. Bxa6 {[%emt 0:29:44]} Qh5 31. Re3 {[%emt 0:00:30]} 1/2-1/2

[Event "Western Asian Juniors Chess-ch 2023"]
[Site "Colombo"]
[Date "2023.12.01"]
[Round "4.4"]
[White "Nabil Nazar, Mohamed"]
[Black "Orozbaev, Eldiar"]
[Result "0-1"]
[ECO "A45"]
[WhiteElo "1803"]
[BlackElo "2278"]
[Annotator "RC"]
[PlyCount "42"]
[EventDate "2023.11.30"]
[EventCountry "SRI"]
[SourceTitle "playchess.com"]
[Source "ChessBase"]
[SourceQuality "1"]
[TimeControl "5400+30"]

1. d4 {[%emt 0:02:49]} Nf6 {[%emt 0:00:02]} 2. Bf4 {[%emt 0:00:07]} g6 {[%emt 0:00:03]} 3. Nc3 {[%emt 0:00:11]} Bg7 {[%emt 0:00:04]} 4. e4 {[%emt 0:00:05]} d5 {[%emt 0:00:02]} 5. e5 {[%emt 0:01:31]} Ne4 {[%emt 0:00:04]} 6. Nxe4 {[%emt 0:03:01]} dxe4 {[%emt 0:00:04]} 7. Qd2 {[%emt 0:00:37]} O-O {[%emt 0:01:43]} 8. O-O-O {[%emt 0:00:27]} c5 {[%emt 0:00:41]} 9. dxc5 {[%emt 0:02:19]} Qc7 {[%emt 0:04:06]} 10. e6 {[%emt 0:09:11]} Qxc5 {[%emt 0:00:06]} 11. Be3 {[%emt 0:02:18]} Qf5 {[%emt 0:03:54]} 12. exf7+ {[%emt 0:00:57]} Qxf7 {[%emt 0:00:05]} 13. Qd5 {[%emt 0:06:07]} Be6 {[%emt 0:00:14]} 14. Qxe4 {[%emt 0:04:24]} Rc8 {[%emt 0:00:23]} 15. g4 {[%emt 0:08:06]} Nd7 {[%emt 0:01:07]} 16. Nf3 {[%emt 0:11:19]} Nc5 {[%emt 0:02:35]} 17. Qf4 {[%emt 0:01:51]} Qxf4 {[%emt 0:01:45]} 18. Bxf4 {[%emt 0:00:02]} Bxa2 {[%emt 0:00:08]} 19. c3 {[%emt 0:03:50]} Bb3 {[%emt 0:02:57]} 20. Re1 {[%emt 0:02:35]} Bd5 {[%emt 0:00:12]} 21. Re3 {[%emt 0:02:51]} Rf8 {[%emt 0:01:37]} 0-1

[Event "Western Asian Juniors Chess-ch 2023"]
[Site "Colombo"]
[Date "2023.12.01"]
[Round "4.5"]
[White "Senevirathne, S D B K"]
[Black "Mazhkenov, Alisher"]
[Result "0-1"]
[ECO "B23"]
[WhiteElo "1802"]
[BlackElo "2105"]
[Annotator "RC"]
[PlyCount "108"]
[EventDate "2023.11.30"]
[EventCountry "SRI"]
[SourceTitle "playchess.com"]
[Source "ChessBase"]
[SourceQuality "1"]
[TimeControl "5400+30"]

1. e4 {[%emt 0:00:04]} c5 {[%emt 0:00:41]} 2. Nc3 {[%emt 0:00:28]} d6 {[%emt 0:01:40]} 3. d4 {[%emt 0:00:39]} cxd4 {[%emt 0:00:18]} 4. Qxd4 {[%emt 0:00:06]} Nc6 {[%emt 0:00:05]} 5. Qd2 {[%emt 0:00:07]} g6 {[%emt 0:00:24]} 6. b3 {[%emt 0:00:04]} Bh6 {[%emt 0:00:15]} 7. f4 {[%emt 0:00:06]} Nf6 {[%emt 0:00:24]} 8. Bb2 {[%emt 0:03:41]} O-O {[%emt 0:00:09]} 9. g3 {[%emt 0:04:26]} e5 {[%emt 0:12:56]} 10. O-O-O {[%emt 0:02:41]} Re8 {[%emt 0:00:09]} 11. Bg2 {[%emt 0:06:09]} exf4 {[%emt 0:10:49]} 12. gxf4 {[%emt 0:00:22]} Bg4 {[%emt 0:13:38]} 13. Re1 {[%emt 0:06:05]} d5 {[%emt 0:03:44]} 14. exd5 {[%emt 0:15:16]} Bxf4 {[%emt 0:04:36]} 15. Qxf4 {[%emt 0:00:04]} Rxe1+ {[%emt 0:00:13]} 16. Kd2 {[%emt 0:00:03]} Re8 {[%emt 0:06:06]} 17. Kc1 {[%emt 0:01:34]} Ne5 {[%emt 0:11:45]} 18. Nge2 {[%emt 0:07:48]} Nh5 {[%emt 0:03:29]} 19. Qd2 {[%emt 0:04:50]} Bf3 {[%emt 0:05:51]} 20. Nd4 {[%emt 0:05:36]} Bxg2 {[%emt 0:00:43]} 21. Qxg2 {[%emt 0:00:09]} Qh4 {[%emt 0:02:51]} 22. Ncb5 {[%emt 0:02:04]} Nd7 {[%emt 0:05:12]} 23. Qd2 {[%emt 0:01:08]} Re4 {[%emt 0:05:24]} 24. Nd6 {[%emt 0:01:44]} Rf4 {[%emt 0:01:34]} 25. Re1 {[%emt 0:03:53]} Nhf6 {[%emt 0:01:13]} 26. N4b5 {[%emt 0:03:03]} Nxd5 {[%emt 0:03:07]} 27. Rd1 {[%emt 0:00:22]} N7b6 {[%emt 0:00:53]} 28. c4 {[%emt 0:00:33]} Nf6 {[%emt 0:01:44]} 29. Nxb7 {[%emt 0:01:08]} Rf2 {[%emt 0:01:45]} 30. Qc3 {[%emt 0:01:31]} Qf4+ {[%emt 0:00:34]} 31. Kb1 {[%emt 0:00:13]} Qe4+ {[%emt 0:00:29]} 32. Ka1 {[%emt 0:00:27]} Qxb7 {[%emt 0:00:13]} 33. a4 {[%emt 0:01:33]} Re8 {[%emt 0:01:45]} 34. Nd6 {[%emt 0:00:27]} Qd7 {[%emt 0:00:13]} 35. Nxe8 {[%emt 0:00:51]} Qxd1+ {[%emt 0:00:16]} 36. Ka2 {[%emt 0:00:06]} Rxb2+ {[%emt 0:00:05]} 37. Qxb2 {[%emt 0:00:14]} Nxe8 {[%emt 0:00:04]} 38. Qe5 {[%emt 0:00:08]} Qd7 {[%emt 0:01:10]} 39. a5 {[%emt 0:00:10]} Nc8 {[%emt 0:00:20]} 40. h4 {[%emt 0:00:32]} h5 {[%emt 0:00:37]} 41. Kb2 {[%emt 0:00:11]} Ned6 {[%emt 0:00:26]} 42. Qd5 {[%emt 0:00:17]} Ne7 {[%emt 0:00:16]} 43. Qa8+ {[%emt 0:00:17]} Kh7 {[%emt 0:00:07]} 44. a6 {[%emt 0:00:07]} Nc6 {[%emt 0:00:24]} 45. Qf8 {[%emt 0:00:27]} Ne5 {[%emt 0:00:43]} 46. Qa8 {[%emt 0:00:14]} Ndxc4+ {[%emt 0:00:17]} 47. bxc4 {[%emt 0:00:09]} Qd2+ {[%emt 0:00:09]} 48. Kb1 {[%emt 0:00:49]} Qb4+ {[%emt 0:00:15]} 49. Ka1 {[%emt 0:00:12]} Qc3+ {[%emt 0:00:33]} 50. Kb1 {[%emt 0:00:06]} Qb3+ {[%emt 0:00:05]} 51. Ka1 {[%emt 0:00:09]} Qa3+ {[%emt 0:00:23]} 52. Kb1 {[%emt 0:00:07]} Qxa6 {[%emt 0:00:07]} 53. Qd5 {[%emt 0:00:21]} Qe6 {[%emt 0:00:04]} 54. Qd4 {[%emt 0:00:12]} Qb6+ {[%emt 0:00:06]} 0-1

[Event "Western Asian Juniors Chess-ch 2023"]
[Site "Colombo"]
[Date "2023.12.01"]
[Round "4.6"]
[White "Manon, Reja Neer"]
[Black "Janukshan, B."]
[Result "1-0"]
[ECO "B55"]
[WhiteElo "2207"]
[BlackElo "1635"]
[Annotator "RC"]
[PlyCount "63"]
[EventDate "2023.11.30"]
[EventCountry "SRI"]
[SourceTitle "playchess.com"]
[Source "ChessBase"]
[SourceQuality "1"]
[TimeControl "5400+30"]

1. e4 {[%emt 0:01:11]} c5 {[%emt 0:00:30]} 2. Nf3 {[%emt 0:01:36]} d6 {[%emt 0:03:56]} 3. d4 {[%emt 0:00:17]} cxd4 {[%emt 0:00:24]} 4. Nxd4 {[%emt 0:00:02]} Nf6 {[%emt 0:00:24]} 5. f3 {[%emt 0:00:46]} a6 {[%emt 0:02:20]} 6. c4 {[%emt 0:00:49]} Nc6 {[%emt 0:06:55]} 7. Nc3 {[%emt 0:00:57]} g6 {[%emt 0:02:06]} 8. Be3 {[%emt 0:01:27]} Bg7 {[%emt 0:04:57]} 9. Nxc6 {[%emt 0:01:40]} bxc6 {[%emt 0:00:14]} 10. Qd2 {[%emt 0:00:01]} Rb8 {[%emt 0:07:29]} 11. Be2 {[%emt 0:19:43]} O-O {[%emt 0:08:14]} 12. O-O {[%emt 0:09:13]} Be6 {[%emt 0:10:09]} 13. f4 {[%emt 0:15:32]} Qa5 {[%emt 0:06:42]} 14. Rac1 {[%emt 0:02:08]} Rfd8 {[%emt 0:04:05]} 15. b3 {[%emt 0:05:24]} d5 {[%emt 0:19:05]} 16. cxd5 {[%emt 0:04:59]} cxd5 {[%emt 0:00:32]} 17. e5 {[%emt 0:01:35]} d4 {[%emt 0:04:57]} 18. Na4 {[%emt 0:00:13]} Qxd2 {[%emt 0:03:35]} 19. Bxd2 {[%emt 0:00:05]} Ne4 {[%emt 0:03:01]} 20. Ba5 {[%emt 0:01:55]} Rf8 {[%emt 0:02:59]} 21. Rfd1 {[%emt 0:05:30]} Bh6 {[%emt 0:00:41]} 22. g3 {[%emt 0:08:05]} g5 {[%emt 0:00:24]} 23. Bd3 {[%emt 0:00:58]} Nc3 {[%emt 0:01:58]} 24. Nxc3 {[%emt 0:00:43]} dxc3 {[%emt 0:00:05]} 25. f5 {[%emt 0:00:28]} Bd5 {[%emt 0:01:35]} 26. Bxc3 {[%emt 0:00:30]} Bf3 {[%emt 0:06:13]} 27. Re1 {[%emt 0:02:30]} Rfd8 {[%emt 0:00:00]} 28. Bxa6 {[%emt 0:01:10]} Ra8 {[%emt 0:00:00]} 29. Be2 {[%emt 0:01:43]} g4 {[%emt 0:00:00]} 30. Bxf3 {[%emt 0:02:41]} Bxc1 {[%emt 0:00:00]} 31. Bxa8 {[%emt 0:00:15]} Rxa8 {[%emt 0:01:45]} 32. Rxc1 {[%emt 0:12:24]} 1-0

[Event "Western Asian Juniors Chess-ch 2023"]
[Site "Colombo"]
[Date "2023.12.01"]
[Round "4.7"]
[White "Kulathilake, S M M P"]
[Black "Halynyazow, Vepaly"]
[Result "1/2-1/2"]
[ECO "D03"]
[WhiteElo "1583"]
[BlackElo "2020"]
[Annotator "RC"]
[PlyCount "61"]
[EventDate "2023.11.30"]
[EventCountry "SRI"]
[SourceTitle "playchess.com"]
[Source "ChessBase"]
[SourceQuality "1"]
[TimeControl "5400+30"]

1. d4 {[%emt 0:00:06]} d5 {[%emt 0:00:06]} 2. Nf3 {[%emt 0:00:08]} Nf6 {[%emt 0:00:06]} 3. Bg5 {[%emt 0:00:07]} e6 {[%emt 0:01:49]} 4. c3 {[%emt 0:00:28]} c5 {[%emt 0:00:22]} 5. e3 {[%emt 0:00:26]} Nc6 {[%emt 0:00:18]} 6. Nbd2 {[%emt 0:00:08]} h6 {[%emt 0:00:29]} 7. Bf4 {[%emt 0:00:10]} Bd6 {[%emt 0:00:12]} 8. Bg3 {[%emt 0:01:08]} cxd4 {[%emt 0:00:48]} 9. exd4 {[%emt 0:00:03]} O-O {[%emt 0:00:53]} 10. Bd3 {[%emt 0:00:57]} Qc7 {[%emt 0:00:14]} 11. O-O {[%emt 0:01:35]} Bxg3 {[%emt 0:00:59]} 12. hxg3 {[%emt 0:00:01]} e5 {[%emt 0:00:32]} 13. dxe5 {[%emt 0:00:53]} Nxe5 {[%emt 0:00:17]} 14. Nxe5 {[%emt 0:00:24]} Qxe5 {[%emt 0:00:02]} 15. Re1 {[%emt 0:00:51]} Qc7 {[%emt 0:01:20]} 16. Qf3 {[%emt 0:04:58]} b5 {[%emt 0:01:53]} 17. Rac1 {[%emt 0:04:31]} Rb8 {[%emt 0:01:39]} 18. Qf4 {[%emt 0:01:06]} Qb6 {[%emt 0:02:16]} 19. Nb3 {[%emt 0:01:36]} a5 {[%emt 0:00:52]} 20. Nxa5 {[%emt 0:05:38]} Ra8 {[%emt 0:27:41]} 21. b4 {[%emt 0:00:31]} Be6 {[%emt 0:05:21]} 22. Qd4 {[%emt 0:05:03]} Qb8 {[%emt 0:00:18]} 23. Bc2 {[%emt 0:07:54]} Rc8 {[%emt 0:05:34]} 24. a4 {[%emt 0:02:07]} bxa4 {[%emt 0:02:02]} 25. Bxa4 {[%emt 0:00:30]} Ne4 {[%emt 0:01:04]} 26. Nc6 {[%emt 0:05:20]} Qb7 {[%emt 0:02:05]} 27. b5 {[%emt 0:00:32]} Nd6 {[%emt 0:03:14]} 28. Rb1 {[%emt 0:04:40]} Nc4 {[%emt 0:00:53]} 29. Rb4 {[%emt 0:01:51]} Na3 {[%emt 0:14:06]} 30. Qc5 {[%emt 0:06:36]} Kh8 {[%emt 0:00:12]} 31. Rc1 {[%emt 0:12:36]} 1/2-1/2

[Event "Western Asian Juniors Chess-ch 2023"]
[Site "Colombo"]
[Date "2023.12.01"]
[Round "4.8"]
[White "Ankit Ray"]
[Black "Liyanage, Pesandu Rashmitha"]
[Result "1/2-1/2"]
[ECO "E60"]
[WhiteElo "1902"]
[BlackElo "1766"]
[Annotator "NA RC"]
[PlyCount "41"]
[EventDate "2023.11.30"]
[EventCountry "SRI"]
[SourceTitle "playchess.com"]
[Source "ChessBase"]
[SourceQuality "1"]
[TimeControl "5400+30"]

1. Nf3 {[%emt 0:00:03]} g6 {[%emt 0:02:32]} 2. d4 {[%emt 0:00:24]} Nf6 {[%emt 0:00:10]} 3. b3 {[%emt 0:00:07]} Bg7 {[%emt 0:00:39]} 4. Bb2 {[%emt 0:00:21]} O-O {[%emt 0:00:08]} 5. c4 {[%emt 0:00:44]} c5 {[%emt 0:02:34]} 6. dxc5 {[%emt 0:03:32]} Qa5+ {[%emt 0:03:04]} 7. Qd2 {[%emt 0:01:06]} Qxd2+ {[%emt 0:08:07]} 8. Nbxd2 {[%emt 0:01:20]} Na6 {[%emt 0:00:24]} 9. Bd4 {[%emt 0:14:47]} Nb4 {[%emt 0:04:03]} 10. Kd1 {[%emt 0:00:19]} Ng4 {[%emt 0:02:45]} 11. a3 {[%emt 0:01:14]} Bxd4 {[%emt 0:02:52]} 12. Nxd4 {[%emt 0:00:09]} Na6 {[%emt 0:00:14]} 13. Ke1 {[%emt 0:00:39]} Nxc5 {[%emt 0:00:14]} 14. b4 {[%emt 0:00:48]} Ne6 {[%emt 0:01:15]} 15. Nxe6 {[%emt 0:02:00]} fxe6 {[%emt 0:00:43]} 16. h3 {[%emt 0:13:48]} Nf6 {[%emt 0:06:38]} 17. g3 {[%emt 0:00:39]} a5 {[%emt 0:04:58]} 18. b5 {[%emt 0:00:15]} b6 {[%emt 0:01:43]} 19. Bg2 {[%emt 0:01:33]} Rb8 {[%emt 0:01:34]} 20. a4 {[%emt 0:04:05]} d6 {[%emt 0:01:50]} 21. Nb3 {[%emt 0:01:28]} 1/2-1/2

[Event "Western Asian Juniors Chess-ch 2023"]
[Site "Colombo"]
[Date "2023.12.01"]
[Round "4.9"]
[White "Sumanathilake, Yonal"]
[Black "Dissanayake, R K T"]
[Result "0-1"]
[ECO "B99"]
[WhiteElo "1524"]
[BlackElo "1865"]
[Annotator "NA RC"]
[PlyCount "75"]
[EventDate "2023.11.30"]
[EventCountry "SRI"]
[SourceTitle "playchess.com"]
[Source "ChessBase"]
[SourceQuality "1"]
[TimeControl "5400+30"]

1. e4 {[%emt 0:00:07]} c5 {[%emt 0:00:07]} 2. Nf3 {[%emt 0:00:08]} d6 {[%emt 0:00:04]} 3. d4 {[%emt 0:00:06]} cxd4 {[%emt 0:00:04]} 4. Nxd4 {[%emt 0:00:05]} Nf6 {[%emt 0:00:05]} 5. Nc3 {[%emt 0:00:07]} a6 {[%emt 0:00:04]} 6. Bg5 {[%emt 0:00:20]} e6 {[%emt 0:00:05]} 7. f4 {[%emt 0:00:14]} h6 {[%emt 0:00:06]} 8. Bh4 {[%emt 0:00:16]} Be7 {[%emt 0:00:05]} 9. Qf3 {[%emt 0:07:27]} Qc7 {[%emt 0:00:30]} 10. O-O-O {[%emt 0:00:57]} Nbd7 {[%emt 0:00:08]} 11. Bd3 {[%emt 0:14:57]} b5 {[%emt 0:12:16]} 12. Bf2 {[%emt 0:24:58]} Bb7 {[%emt 0:02:56]} 13. Rhe1 {[%emt 0:21:47]} b4 {[%emt 0:13:05]} 14. Nb1 {[%emt 0:00:52]} g5 {[%emt 0:05:39]} 15. g3 {[%emt 0:01:16]} Nc5 {[%emt 0:17:07]} 16. Nd2 {[%emt 0:00:39]} d5 {[%emt 0:10:58]} 17. e5 {[%emt 0:00:54]} Nfe4 {[%emt 0:00:39]} 18. Bg1 {[%emt 0:02:03]} Qa5 {[%emt 0:02:24]} 19. N2b3 {[%emt 0:10:02]} Qxa2 {[%emt 0:00:53]} 20. f5 {[%emt 0:00:37]} Na4 {[%emt 0:00:43]} 21. Bxe4 {[%emt 0:01:47]} dxe4 {[%emt 0:01:16]} 22. Qh5 {[%emt 0:00:41]} Qxb2+ {[%emt 0:06:45]} 23. Kd2 {[%emt 0:00:03]} exf5 {[%emt 0:11:29]} 24. Rf1 {[%emt 0:04:33]} Qc3+ {[%emt 0:03:41]} 25. Ke2 {[%emt 0:02:31]} Qc4+ {[%emt 0:01:39]} 26. Ke1 {[%emt 0:00:57]} O-O-O {[%emt 0:01:34]} 27. Rxf5 {[%emt 0:00:46]} Bd5 {[%emt 0:04:10]} 28. Be3 {[%emt 0:03:24]} Nc5 {[%emt 0:03:19]} 29. Ra1 {[%emt 0:01:37]} Nxb3 {[%emt 0:03:09]} 30. Nxb3 {[%emt 0:00:19]} Be6 {[%emt 0:00:00]} (30... Qxc2 $2 31. Rc1 $18) 31. Rf2 {[%emt 0:00:24]} Qc3+ {[%emt 0:00:00]} 32. Bd2 {[%emt 0:00:05]} Rxd2 {[%emt 0:00:00]} 33. Rxd2 {[%emt 0:00:15]} Bxb3 {[%emt 0:00:00]} 34. Qg4+ {[%emt 0:00:59]} Kb8 {[%emt 0:01:28]} 35. Rxa6 {[%emt 0:01:08]} Rd8 {[%emt 0:00:14]} 36. Rad6 {[%emt 0:00:21]} Bxd6 {[%emt 0:00:28] Pin} 37. exd6 {[%emt 0:00:41]} e3 {[%emt 0:00:19]} 38. Kd1 {[%emt 0:01:07]} 0-1

[Event "Western Asian Juniors Chess-ch 2023"]
[Site "Colombo"]
[Date "2023.12.01"]
[Round "4.10"]
[White "Mujahid Bin Yazeed"]
[Black "Sathsindu, W M Minura"]
[Result "1/2-1/2"]
[ECO "B76"]
[WhiteElo "1832"]
[BlackElo "1542"]
[Annotator "NA RC"]
[PlyCount "184"]
[EventDate "2023.11.30"]
[EventCountry "SRI"]
[SourceTitle "playchess.com"]
[Source "ChessBase"]
[SourceQuality "1"]
[TimeControl "5400+30"]

1. e4 {[%emt 0:03:23]} c5 {[%emt 0:00:17]} 2. Nc3 {[%emt 0:00:14]} g6 {[%emt 0:00:20]} 3. d4 {[%emt 0:02:27]} Bg7 {[%emt 0:06:24]} 4. Nf3 {[%emt 0:01:24]} cxd4 {[%emt 0:00:40]} 5. Nxd4 {[%emt 0:00:18]} Nc6 {[%emt 0:01:43]} 6. Be3 {[%emt 0:00:23]} d6 {[%emt 0:03:00]} 7. Be2 {[%emt 0:01:34]} Nf6 {[%emt 1:21:36]} 8. f3 {[%emt 0:00:59]} O-O {[%emt 0:00:00]} 9. Qd2 {[%emt 0:01:17]} d5 {[%emt 0:00:00]} 10. exd5 {[%emt 0:03:15]} Nxd5 {[%emt 0:00:00]} 11. Nxd5 {[%emt 0:01:07]} Qxd5 {[%emt 0:00:00]} 12. Nxc6 {[%emt 0:00:09]} Qxc6 {[%emt 0:00:00]} 13. c3 {[%emt 0:11:23]} Bf5 {[%emt 0:00:00]} 14. O-O {[%emt 0:03:04]} Rfd8 {[%emt 0:00:00]} 15. Qe1 {[%emt 0:00:41]} Bd3 {[%emt 0:00:00]} 16. Bxd3 {[%emt 0:07:31]} Rxd3 {[%emt 0:00:00]} 17. Qe2 {[%emt 0:02:51]} Rdd8 {[%emt 0:00:00]} 18. a4 {[%emt 0:04:34]} Rd6 {[%emt 0:00:00]} 19. Qf2 {[%emt 0:04:20]} a5 {[%emt 0:00:00]} 20. Bc5 {[%emt 0:04:42]} Rd7 {[%emt 0:00:00]} 21. Rfe1 {[%emt 0:09:27]} e6 {[%emt 0:00:00]} 22. Be3 {[%emt 0:00:57]} b5 {[%emt 0:00:00]} 23. axb5 {[%emt 0:01:45]} Qxb5 {[%emt 0:00:00]} 24. Qc2 {[%emt 0:03:07]} Rb8 {[%emt 0:00:00]} 25. Ra2 {[%emt 0:00:48]} h5 {[%emt 0:00:00]} 26. Rea1 {[%emt 0:04:49]} a4 {[%emt 0:00:00]} 27. Bc1 {[%emt 0:05:30]} Rbd8 {[%emt 0:00:00]} 28. Be3 {[%emt 0:01:03]} Rb8 {[%emt 0:00:00]} 29. g3 {[%emt 0:03:16]} Bf6 {[%emt 0:00:00]} 30. Kf2 {[%emt 0:03:49]} Bg7 {[%emt 0:03:51]} 31. Rc1 {[%emt 0:03:17]} Qb3 $11 {[%emt 0:05:08]} (31... Rc7 $15) 32. Rxa4 {[%emt 0:00:21]} Qxb2 {[%emt 0:00:26]} 33. Ra2 {[%emt 0:03:02] [#]} (33. Rb4 $1 $11 Rxb4 34. cxb4) 33... Bxc3 $1 {[%emt 0:00:59]} 34. Kf1 {[%emt 0:02:25]} ({Better is} 34. g4) 34... Qxc2 {[%emt 0:00:36]} 35. Rcxc2 {[%emt 0:00:48]} Bf6 {[%emt 0:00:41]} 36. Kg2 {[%emt 0:00:31]} Rb3 {[%emt 0:00:46]} 37. Bf2 {[%emt 0:01:00]} Rdd3 {[%emt 0:00:24]} 38. f4 {[%emt 0:00:17]} Bd4 {[%emt 0:00:34]} 39. Bxd4 {[%emt 0:02:04]} Rxd4 {[%emt 0:00:01]} 40. Rc7 {[%emt 0:00:27]} Rd5 {[%emt 0:00:59]} 41. Rc6 {[%emt 0:01:40]} Rf5 {[%emt 0:00:26]} 42. Ra7 {[%emt 0:00:36]} (42. Rc7 $17 {was called for.}) 42... h4 {[%emt 0:00:30]} 43. Rcc7 {[%emt 0:01:19]} hxg3 {[%emt 0:00:28]} 44. hxg3 {[%emt 0:00:02]} e5 {[%emt 0:01:21]} (44... Rbb5 $17) 45. fxe5 {[%emt 0:00:18]} Re3 {[%emt 0:00:20]} 46. Re7 {[%emt 0:03:05]} Rexe5 {[%emt 0:00:36]} 47. Rxe5 {[%emt 0:00:02]} Rxe5 {[%emt 0:00:02]} 48. Kf3 {[%emt 0:00:11]} Kg7 {[%emt 0:02:22]} 49. Kf4 {[%emt 0:00:17]} Re6 {[%emt 0:00:00]} 50. Kg4 {[%emt 0:00:30]} Re4+ {[%emt 0:00:00]} 51. Kf3 {[%emt 0:00:02]} Rb4 {[%emt 0:00:00]} 52. Ra6 {[%emt 0:01:23]} f5 {[%emt 0:00:00]} 53. Re6 {[%emt 0:00:50]} Kh6 {[%emt 0:00:00]} 54. Re3 {[%emt 0:00:43]} Kg5 {[%emt 0:00:00]} 55. Rc3 {[%emt 0:00:15]} Rb1 {[%emt 0:00:17]} 56. Rc4 {[%emt 0:00:19]} Rb3+ {[%emt 0:00:14]} 57. Kf2 {[%emt 0:00:27]} Rd3 {[%emt 0:00:12]} 58. Rb4 {[%emt 0:00:46]} Kh5 {[%emt 0:01:35]} (58... Ra3 $15 {is more appropriate.}) 59. Rh4+ {[%emt 0:00:09]} Kg5 {[%emt 0:00:08]} 60. Rc4 {[%emt 0:00:04]} Kh6 {[%emt 0:01:13]} 61. Rc6 {[%emt 0:00:28]} Kh5 {[%emt 0:00:32]} 62. Rc5 {[%emt 0:00:56]} Ra3 {[%emt 0:00:45]} 63. Rd5 {[%emt 0:00:30]} Ra4 {[%emt 0:00:57]} 64. Kf3 {[%emt 0:00:34]} Kh6 {[%emt 0:00:12]} 65. Rd6 {[%emt 0:00:16]} Kg7 {[%emt 0:02:25]} 66. Rd7+ {[%emt 0:00:11]} Kf6 {[%emt 0:00:30]} 67. Rd6+ {[%emt 0:00:13]} Kf7 {[%emt 0:00:30]} 68. Rd5 {[%emt 0:00:49]} Ke6 {[%emt 0:00:30]} 69. Rb5 {[%emt 0:00:24]} g5 {[%emt 0:00:00]} 70. Rb6+ {[%emt 0:03:52]} Kf7 {[%emt 0:00:00]} 71. Rc6 {[%emt 0:00:00]} Re4 {[%emt 0:00:00]} 72. Rc7+ {[%emt 0:00:00]} Kg6 {[%emt 0:02:00]} 73. Rc8 {[%emt 0:00:00]} g4+ {[%emt 0:00:00]} 74. Kf2 {[%emt 0:00:00]} Ra4 {[%emt 0:00:00]} 75. Rc6+ {[%emt 0:00:00]} Kg5 {[%emt 0:00:00]} 76. Rc5 {[%emt 0:00:00]} Ra2+ {[%emt 0:00:00]} 77. Kf1 {[%emt 0:00:20]} Kf6 {[%emt 0:00:00]} 78. Rb5 {[%emt 0:00:29]} Ke6 {[%emt 0:03:00]} 79. Rc5 {[%emt 0:00:14]} Rd2 {[%emt 0:00:30]} 80. Kg1 {[%emt 0:01:58]} Rd5 {[%emt 0:00:00]} 81. Rc1 {[%emt 0:00:32]} Ke5 {[%emt 0:00:00]} 82. Re1+ Kd4 {[%emt 0:01:30]} 83. Rd1+ {[%emt 0:00:20]} Ke4 {[%emt 0:00:30]} 84. Rf1 {[%emt 0:03:07]} Rd3 {[%emt 0:00:00]} 85. Rf4+ {[%emt 0:00:30]} Ke5 {[%emt 0:01:00]} 86. Kg2 {[%emt 0:00:30]} Re3 {[%emt 0:00:30]} 87. Rb4 {[%emt 0:00:30]} Rf3 {[%emt 0:00:30]} 88. Rb5+ {[%emt 0:00:00]} Kd4 {[%emt 0:00:30]} 89. Ra5 {[%emt 0:01:00]} Ke4 {[%emt 0:00:00]} 90. Ra4+ {[%emt 0:00:00]} Ke5 {[%emt 0:00:00]} 91. Ra5+ {[%emt 0:00:00]} Ke4 {[%emt 0:01:30]} 92. Ra4+ Ke5 {[%emt 0:00:00]} 1/2-1/2